[Event "11th Arad Open 2018"]
[Site "Arad"]
[Date "2018.08.10"]
[Round "7"]
[White "Samu, Sorin-Mihai"]
[Black "Ileana, George"]
[Result "0-1"]
[ECO "A20"]
[WhiteElo "2090"]
[BlackElo "2324"]
[Annotator "NA"]
[PlyCount "128"]
[EventDate "2018.08.05"]
[EventType "swiss"]
[EventCountry "ROU"]
[SourceTitle "playchess.com"]
[Source "ChessBase"]
[SourceQuality "1"]
[TimeControl "40/5400+30:1800+30"]

1. c4 {[%emt 0:01:27]} e5 {[%emt 0:00:00]} 2. b3 {[%emt 0:00:27]} Nc6 {[%emt 0:00:16]} 3. Bb2 {[%emt 0:00:12]} Bc5 {[%emt 0:00:23]} 4. e3 {[%emt 0:00:55]} d6 {[%emt 0:00:09]} 5. a3 {[%emt 0:00:57]} a6 {[%emt 0:00:27]} 6. d4 {[%emt 0:00:28]} Ba7 {[%emt 0:00:59]} 7. Nf3 {[%emt 0:00:16]} exd4 {[%emt 0:02:32]} 8. exd4 {[%emt 0:00:14]} d5 {[%emt 0:00:20]} 9. Nc3 {[%emt 0:02:23]} Nf6 {[%emt 0:00:12]} 10. c5 {[%emt 0:00:43]} O-O {[%emt 0:01:31]} 11. Be2 {[%emt 0:00:03]} Bg4 {[%emt 0:00:40]} 12. O-O {[%emt 0:01:37]} b6 {[%emt 0:02:54]} 13. b4 {[%emt 0:01:55]} bxc5 {[%emt 0:00:22]} 14. dxc5 {[%emt 0:00:45]} a5 {[%emt 0:00:45]} 15. b5 {[%emt 0:01:09]} Ne7 {[%emt 0:00:07]} 16. Na4 {[%emt 0:00:57]} Ne4 {[%emt 0:01:12]} 17. Rc1 {[%emt 0:01:42]} c6 {[%emt 0:00:30]} 18. b6 {[%emt 0:00:29]} Bb8 {[%emt 0:00:14]} 19. Nd4 {[%emt 0:00:47]} Bxe2 {[%emt 0:03:56]} 20. Qxe2 {[%emt 0:00:03]} Qd7 {[%emt 0:00:14]} 21. f3 {[%emt 0:00:55]} Nf6 {[%emt 0:00:26]} 22. Rfe1 {[%emt 0:01:15]} Ng6 {[%emt 0:00:14]} 23. g3 {[%emt 0:00:28]} h5 {[%emt 0:00:39]} 24. Qd3 {[%emt 0:00:41]} h4 {[%emt 0:00:41]} 25. Qf5 {[%emt 0:01:32]} hxg3 {[%emt 0:00:34]} 26. Qxd7 {[%emt 0:00:21]} gxh2+ {[%emt 0:00:41]} 27. Kh1 {[%emt 0:00:11]} Nxd7 {[%emt 0:00:04]} 28. Nxc6 {[%emt 0:00:38]} Bf4 {[%emt 0:00:18]} 29. Rcd1 {[%emt 0:02:11]} Rac8 {[%emt 0:03:01]} 30. Na7 {[%emt 0:02:24]} Nxc5 {[%emt 0:01:21]} 31. Nxc8 {[%emt 0:09:12]} Nxa4 {[%emt 0:00:06]} 32. Bc1 {[%emt 0:02:42]} Rxc8 {[%emt 0:18:37]} 33. Bxf4 {[%emt 0:01:04]} Nxb6 {[%emt 0:03:28]} 34. Bxh2 {[%emt 0:01:26]} f6 {[%emt 0:01:20]} 35. Rd3 {[%emt 0:02:55]} Kf7 {[%emt 0:02:15]} 36. Rb1 {[%emt 0:00:12]} Rc6 {[%emt 0:00:22]} 37. Bg1 {[%emt 0:02:24]} Ne5 {[%emt 0:00:20]} 38. Rdb3 {[%emt 0:02:51]} Nbc4 {[%emt 0:00:49]} 39. f4 {[%emt 0:01:58]} Nd7 {[%emt 0:03:31]} 40. f5 {[%emt 0:00:00]} Nd2 {[%emt 0:00:00]} 41. Rb7 {[%emt 0:16:10]} Nxb1 {[%emt 0:16:01]} 42. Rxd7+ {[%emt 0:00:25]} Kg8 {[%emt 0:00:14]} 43. Rxd5 {[%emt 0:00:16]} Nxa3 {[%emt 0:01:04]} 44. Rxa5 {[%emt 0:00:01]} Nc4 {[%emt 0:00:13]} 45. Rc5 {[%emt 0:00:48]} Ne5 {[%emt 0:01:09]} 46. Rxc6 {[%emt 0:00:18]} Nxc6 {[%emt 0:00:03]} 47. Bc5 {[%emt 0:00:18]} Kf7 {[%emt 0:00:36]} 48. Kg2 {[%emt 0:00:48]} Ne7 {[%emt 0:00:06]} 49. Kf3 {[%emt 0:01:37]} Nxf5 {[%emt 0:00:04]} 50. Kf4 {[%emt 0:00:09]} Ke6 {[%emt 0:00:09]} 51. Ba7 {[%emt 0:00:06]} Ne7 {[%emt 0:00:12]} 52. Ke4 {[%emt 0:00:51]} g5 {[%emt 0:00:46]} 53. Bb8 {[%emt 0:00:48]} Ng6 {[%emt 0:00:42]} 54. Bc7 {[%emt 0:00:09]} f5+ {[%emt 0:01:10]} 55. Ke3 {[%emt 0:00:05]} Kd5 {[%emt 0:00:10]} 56. Bh2 {[%emt 0:00:49]} f4+ {[%emt 0:00:20]} 57. Kf2 {[%emt 0:00:56]} Ke4 {[%emt 0:00:09]} 58. Bg1 {[%emt 0:00:11]} Nh4 {[%emt 0:00:21]} 59. Ke2 {[%emt 0:00:07]} g4 {[%emt 0:00:38]} 60. Bb6 {[%emt 0:00:05]} g3 {[%emt 0:00:29]} 61. Bc7 {[%emt 0:00:43]} f3+ {[%emt 0:01:45]} 62. Kf1 {[%emt 0:00:03]} Nf5 {[%emt 0:00:05]} 63. Ke1 {[%emt 0:00:46]} f2+ {[%emt 0:00:08]} 64. Ke2 {[%emt 0:00:16]} Ne3 0-1

[Event "11th Arad Open 2018"]
[Site "Arad"]
[Date "2018.08.10"]
[Round "7"]
[White "Visanescu, Daria-Ioana"]
[Black "Gheorghiu, Calin"]
[Result "1-0"]
[ECO "B22"]
[WhiteElo "2075"]
[BlackElo "2292"]
[Annotator "NA"]
[PlyCount "63"]
[EventDate "2018.08.05"]
[EventType "swiss"]
[EventCountry "ROU"]
[SourceTitle "playchess.com"]
[Source "ChessBase"]
[SourceQuality "1"]
[TimeControl "40/5400+30:1800+30"]

1. e4 {[%emt 0:00:07]} c5 {[%emt 0:00:00]} 2. c3 {[%emt 0:00:08]} Nf6 {[%emt 0:00:00]} 3. e5 {[%emt 0:00:12]} Nd5 {[%emt 0:00:04]} 4. d4 {[%emt 0:00:10]} cxd4 {[%emt 0:00:08]} 5. Nf3 {[%emt 0:00:05]} e6 {[%emt 0:00:20]} 6. cxd4 {[%emt 0:00:16]} Nc6 {[%emt 0:00:03]} 7. Bc4 {[%emt 0:01:01]} d6 {[%emt 0:00:34]} 8. O-O {[%emt 0:00:25]} Be7 {[%emt 0:00:14]} 9. Qe2 {[%emt 0:00:38]} O-O {[%emt 0:01:01]} 10. Nc3 {[%emt 0:00:22]} dxe5 {[%emt 0:01:40]} 11. dxe5 {[%emt 0:01:07]} Nxc3 {[%emt 0:00:18]} 12. bxc3 {[%emt 0:00:04]} Qc7 {[%emt 0:00:15]} 13. Bd2 {[%emt 0:02:26]} Rd8 {[%emt 0:02:35]} 14. Qe4 {[%emt 0:01:12]} Nxe5 {[%emt 0:08:52]} 15. Nxe5 {[%emt 0:00:09]} Rxd2 {[%emt 0:02:19]} 16. Qf4 {[%emt 0:00:05]} Rd8 {[%emt 0:00:25]} 17. Qxf7+ {[%emt 0:01:14]} Kh8 {[%emt 0:00:02]} 18. Qh5 {[%emt 0:04:27]} Kg8 {[%emt 0:02:57]} 19. Bd3 {[%emt 0:40:29]} g6 {[%emt 0:08:53]} 20. Bxg6 {[%emt 0:00:17]} Bf6 {[%emt 0:00:03]} 21. Ng4 {[%emt 0:16:42]} Bxc3 {[%emt 0:07:46]} 22. Bxh7+ {[%emt 0:00:45]} Kf8 {[%emt 0:03:54]} 23. Rac1 {[%emt 0:03:01]} Rd5 {[%emt 0:00:09]} 24. Qh6+ {[%emt 0:04:04]} Qg7 {[%emt 0:05:11]} 25. Qf4+ {[%emt 0:01:39]} Ke8 {[%emt 0:01:49]} 26. Rxc3 {[%emt 0:00:50]} Qxc3 {[%emt 0:01:10]} 27. Nf6+ {[%emt 0:00:08]} Kd8 {[%emt 0:00:13]} 28. Nxd5 {[%emt 0:00:08]} exd5 {[%emt 0:00:01]} 29. Rc1 {[%emt 0:01:32]} Qg7 {[%emt 0:00:22]} 30. Bf5 {[%emt 0:11:29]} Bxf5 {[%emt 0:01:37]} 31. Qxf5 {[%emt 0:00:05]} Qd7 {[%emt 0:00:14]} 32. Qg5+ {[%emt 0:00:23]} 1-0

[Event "11th Arad Open 2018"]
[Site "Arad"]
[Date "2018.08.10"]
[Round "7"]
[White "Paraschiv, Paul-Alexandru"]
[Black "Cerbulenco, Liviu"]
[Result "1/2-1/2"]
[ECO "A45"]
[WhiteElo "2074"]
[BlackElo "2287"]
[Annotator "NA"]
[PlyCount "262"]
[EventDate "2018.08.05"]
[EventType "swiss"]
[EventCountry "ROU"]
[SourceTitle "playchess.com"]
[Source "ChessBase"]
[SourceQuality "1"]
[TimeControl "40/5400+30:1800+30"]

1. d4 {[%emt 0:00:00]} Nf6 {[%emt 0:00:00]} 2. Bg5 {[%emt 0:00:12]} Ne4 {[%emt 0:01:06]} 3. Bf4 {[%emt 0:00:07]} d5 {[%emt 0:00:04]} 4. e3 {[%emt 0:00:00]} c5 {[%emt 0:00:07]} 5. Bd3 Nf6 6. c3 {[%emt 0:01:28]} Nc6 {[%emt 0:00:11]} 7. Nd2 {[%emt 0:00:34]} Bg4 {[%emt 0:02:00]} 8. Ngf3 {[%emt 0:01:57]} e6 {[%emt 0:00:07]} 9. Qa4 {[%emt 0:00:30]} Nd7 {[%emt 0:04:14]} 10. Ne5 {[%emt 0:02:24]} Ndxe5 {[%emt 0:01:19]} 11. Bxe5 {[%emt 0:00:55]} c4 {[%emt 0:09:33]} 12. Be2 {[%emt 0:03:00]} Bxe2 {[%emt 0:00:16]} 13. Kxe2 {[%emt 0:00:02]} a6 {[%emt 0:01:32]} 14. Bg3 {[%emt 0:02:05]} b5 {[%emt 0:10:57]} 15. Qc2 {[%emt 0:00:02]} b4 {[%emt 0:00:23]} 16. e4 {[%emt 0:03:03]} Be7 {[%emt 0:02:17]} 17. exd5 {[%emt 0:00:31]} exd5 {[%emt 0:00:06]} 18. Rhe1 {[%emt 0:00:10]} O-O {[%emt 0:00:38]} 19. Kf1 {[%emt 0:00:05]} Qd7 {[%emt 0:02:50]} 20. Nf3 {[%emt 0:02:11]} Rfe8 {[%emt 0:05:34]} 21. Qa4 {[%emt 0:02:48]} f6 {[%emt 0:06:09]} 22. Re2 {[%emt 0:00:52]} Bf8 {[%emt 0:00:10]} 23. Rae1 {[%emt 0:01:12]} Rxe2 {[%emt 0:00:04]} 24. Rxe2 {[%emt 0:00:06]} Kf7 {[%emt 0:01:18]} 25. cxb4 {[%emt 0:02:28]} Bxb4 {[%emt 0:00:49]} 26. b3 {[%emt 0:01:05]} cxb3 {[%emt 0:04:12]} 27. axb3 {[%emt 0:01:27]} Qb7 {[%emt 0:00:43]} 28. Rc2 {[%emt 0:05:43]} Rc8 {[%emt 0:00:23]} 29. Bf4 {[%emt 0:00:34]} Ne7 {[%emt 0:07:20]} 30. Rxc8 {[%emt 0:01:35]} Nxc8 {[%emt 0:00:03]} 31. Ne1 {[%emt 0:02:11]} Bxe1 {[%emt 0:01:45]} 32. Kxe1 {[%emt 0:00:03]} g5 {[%emt 0:01:35]} 33. Bg3 {[%emt 0:02:39]} h5 {[%emt 0:03:40]} 34. h4 {[%emt 0:03:04]} gxh4 {[%emt 0:00:16]} 35. Bxh4 {[%emt 0:00:32]} Ne7 {[%emt 0:00:35]} 36. f3 {[%emt 0:01:44]} Qc6 {[%emt 0:01:06]} 37. Kd2 {[%emt 0:01:04]} Qxa4 {[%emt 0:03:15]} 38. bxa4 {[%emt 0:00:02]} Nf5 {[%emt 0:00:07]} 39. Bf2 {[%emt 0:00:02]} Ke6 {[%emt 0:00:16]} 40. Kc3 {[%emt 0:00:00]} Kd7 {[%emt 0:00:00]} 41. Kb4 {[%emt 0:15:37]} Kc6 {[%emt 0:15:11]} 42. Ka5 {[%emt 0:00:58]} Kb7 {[%emt 0:00:02]} 43. Kb4 {[%emt 0:00:01]} Kb6 {[%emt 0:00:05]} 44. Kb3 {[%emt 0:01:23]} Kc6 {[%emt 0:08:22]} 45. Kb4 {[%emt 0:00:09]} Nd6 {[%emt 0:05:07]} 46. Bh4 {[%emt 0:00:22]} f5 {[%emt 0:01:53]} 47. Ka5 {[%emt 0:00:30]} Kb7 {[%emt 0:00:22]} 48. Kb4 {[%emt 0:00:29]} Kb6 {[%emt 0:00:17]} 49. Bd8+ {[%emt 0:00:32]} Kc6 {[%emt 0:00:05]} 50. Bg5 {[%emt 0:00:08]} Nc4 {[%emt 0:01:31]} 51. Bc1 {[%emt 0:00:16]} a5+ {[%emt 0:07:06]} 52. Kc3 {[%emt 0:00:32]} Kd7 {[%emt 0:00:08]} 53. Bf4 {[%emt 0:01:02]} Ke6 {[%emt 0:01:23]} 54. Bc7 {[%emt 0:01:46]} Ne3 {[%emt 0:05:05]} 55. g3 {[%emt 0:01:19]} Nc4 {[%emt 0:00:07]} 56. Bf4 {[%emt 0:00:09]} Kd7 {[%emt 0:00:43]} 57. Bc1 {[%emt 0:00:22]} Kc6 {[%emt 0:00:12]} 58. Bg5 {[%emt 0:00:32]} Kd7 {[%emt 0:00:21]} 59. f4 {[%emt 0:02:00]} Nd6 {[%emt 0:04:29]} 60. Bh4 {[%emt 0:00:19]} Ne4+ {[%emt 0:00:03]} 61. Kd3 {[%emt 0:01:41]} Kc7 {[%emt 0:00:12]} 62. Kc2 {[%emt 0:00:14]} Kd7 {[%emt 0:02:20]} 63. Kd3 {[%emt 0:00:08]} Ke8 {[%emt 0:00:12]} 64. Kc2 {[%emt 0:00:05]} Nd6 {[%emt 0:00:14]} 65. Kc3 {[%emt 0:00:09]} Kf7 {[%emt 0:00:20]} 66. Kb3 {[%emt 0:00:08]} Ke8 {[%emt 0:00:04]} 67. Kc3 {[%emt 0:00:04]} Nc4 {[%emt 0:00:22]} 68. Kb3 {[%emt 0:00:10]} Kd7 {[%emt 0:06:12]} 69. Kc3 {[%emt 0:00:07]} Nb6 {[%emt 0:00:06]} 70. Kb3 {[%emt 0:00:02]} Nc8 {[%emt 0:00:09]} 71. Kc3 {[%emt 0:00:28]} Na7 {[%emt 0:00:21]} 72. Bg5 {[%emt 0:00:25]} Nc6 {[%emt 0:00:18]} 73. Bf6 {[%emt 0:00:25]} Ke8 {[%emt 0:01:27]} 74. Bg5 {[%emt 0:00:11]} Kf7 {[%emt 0:00:11]} 75. Bh4 {[%emt 0:00:06]} Kg6 {[%emt 0:00:05]} 76. Kd3 {[%emt 0:00:15]} Nb4+ {[%emt 0:00:28]} 77. Kc3 {[%emt 0:00:06]} Nc6 {[%emt 0:02:18]} 78. Kd3 {[%emt 0:00:01]} Kg7 {[%emt 0:00:11]} 79. Kc3 {[%emt 0:00:11]} Kf7 {[%emt 0:00:14]} 80. Kd3 {[%emt 0:00:01]} Ke8 {[%emt 0:00:13]} 81. Kc3 {[%emt 0:00:02]} Nb4 {[%emt 0:01:22]} 82. Bg5 {[%emt 0:00:13]} Na2+ {[%emt 0:00:40]} 83. Kb2 {[%emt 0:00:11]} Nb4 {[%emt 0:00:03]} 84. Kc3 {[%emt 0:00:06]} Nc6 {[%emt 0:00:30]} 85. Bh4 {[%emt 0:00:01]} Na7 {[%emt 0:00:22]} 86. Kb3 {[%emt 0:00:07]} Nc8 {[%emt 0:00:05]} 87. Kc3 {[%emt 0:00:07]} Kd7 {[%emt 0:00:07]} 88. Kb3 {[%emt 0:00:08]} Nb6 {[%emt 0:00:05]} 89. Bg5 {[%emt 0:00:14]} Ke8 {[%emt 0:00:25]} 90. Bh4 {[%emt 0:00:01]} Kd7 {[%emt 0:00:11]} 91. Bg5 {[%emt 0:00:02]} Nc4 {[%emt 0:00:21]} 92. Kc3 {[%emt 0:00:20]} Ke8 {[%emt 0:00:44]} 93. Bh4 {[%emt 0:00:05]} Nd6 {[%emt 0:00:15]} 94. Kd3 {[%emt 0:00:06]} Kd7 {[%emt 0:00:48]} 95. Kc3 {[%emt 0:00:16]} Nc8 {[%emt 0:00:15]} 96. Kb3 {[%emt 0:00:07]} Nb6 {[%emt 0:00:08]} 97. Bg5 {[%emt 0:00:18]} Kc7 {[%emt 0:00:06]} 98. Bh4 {[%emt 0:00:08]} Nd7 {[%emt 0:00:27]} 99. Kc3 {[%emt 0:00:11]} Nf8 {[%emt 0:00:20]} 100. Kd3 {[%emt 0:00:09]} Ng6 {[%emt 0:00:08]} 101. Kc3 {[%emt 0:00:02]} Nf8 {[%emt 0:00:17]} 102. Be7 {[%emt 0:00:18]} Ng6 {[%emt 0:00:23]} 103. Bh4 {[%emt 0:00:02]} Kd7 {[%emt 0:00:17]} 104. Kd3 {[%emt 0:00:07]} Nh8 {[%emt 0:00:35]} 105. Kc3 {[%emt 0:00:12]} Nf7 {[%emt 0:00:06]} 106. Kd2 {[%emt 0:00:19]} Nd6 {[%emt 0:00:20]} 107. Kd3 {[%emt 0:00:12]} Ke8 {[%emt 0:00:07]} 108. Kc3 {[%emt 0:00:17]} Kd7 {[%emt 0:00:02]} 109. Kd2 {[%emt 0:00:13]} Kc8 {[%emt 0:00:55]} 110. Kd3 {[%emt 0:00:08]} Kc7 {[%emt 0:00:13]} 111. Kd2 {[%emt 0:00:11]} Nc8 {[%emt 0:00:57]} 112. Kc3 {[%emt 0:00:02]} Kd7 {[%emt 0:00:08]} 113. Kc2 {[%emt 0:00:11]} Ke8 {[%emt 0:00:12]} 114. Kc3 {[%emt 0:00:04]} Kd7 {[%emt 0:00:56]} 115. Kc2 {[%emt 0:00:05]} Na7 {[%emt 0:00:54]} 116. Kc3 {[%emt 0:00:08]} Nc6 {[%emt 0:00:01]} 117. Bg5 {[%emt 0:00:09]} Kc7 {[%emt 0:00:06]} 118. Bf6 {[%emt 0:00:05]} Kb6 {[%emt 0:00:08]} 119. Bg5 {[%emt 0:00:11]} Nb4 {[%emt 0:01:00]} 120. Bd8+ {[%emt 0:00:18]} Ka6 {[%emt 0:00:08]} 121. Be7 {[%emt 0:00:09]} Nc6 {[%emt 0:00:14]} 122. Bf6 {[%emt 0:00:10]} Nb8 {[%emt 0:00:18]} 123. Bd8 {[%emt 0:00:21]} Nd7 {[%emt 0:00:15]} 124. Kb3 {[%emt 0:00:39]} Nf8 {[%emt 0:00:20]} 125. Kc3 {[%emt 0:00:06]} Ne6 {[%emt 0:00:28]} 126. Bh4 {[%emt 0:00:03]} Nc7 {[%emt 0:01:01]} 127. Kd3 {[%emt 0:00:14]} Ne8 {[%emt 0:00:31]} 128. Be7 {[%emt 0:00:16]} Kb7 {[%emt 0:00:18]} 129. Bd8 {[%emt 0:00:23]} Ka6 {[%emt 0:00:14]} 130. Be7 {[%emt 0:00:02]} Nc7 {[%emt 0:00:41]} 131. Bh4 {[%emt 0:00:07]} Ne6 {[%emt 0:00:50] Ke4} 1/2-1/2

[Event "11th Arad Open 2018"]
[Site "Arad"]
[Date "2018.08.10"]
[Round "7"]
[White "Bai, Adelard"]
[Black "Vujacic, Borivoje"]
[Result "1/2-1/2"]
[ECO "A50"]
[WhiteElo "2071"]
[BlackElo "2235"]
[Annotator "NA"]
[PlyCount "120"]
[EventDate "2018.08.05"]
[EventType "swiss"]
[EventCountry "ROU"]
[SourceTitle "playchess.com"]
[Source "ChessBase"]
[SourceQuality "1"]
[TimeControl "40/5400+30:1800+30"]

1. d4 {[%emt 0:00:00]} Nf6 {[%emt 0:00:00]} 2. c4 {[%emt 0:00:00]} c6 {[%emt 0:01:03]} 3. Nc3 {[%emt 0:00:56]} d5 {[%emt 0:00:04]} 4. cxd5 {[%emt 0:00:15]} cxd5 {[%emt 0:00:07]} 5. Bf4 {[%emt 0:00:21]} a6 {[%emt 0:03:00]} 6. e3 {[%emt 0:00:26]} Nc6 {[%emt 0:00:53]} 7. Bd3 {[%emt 0:00:32]} e6 {[%emt 0:02:35]} 8. Nf3 {[%emt 0:06:20]} Be7 {[%emt 0:05:29]} 9. h3 {[%emt 0:00:21]} O-O {[%emt 0:02:51]} 10. O-O {[%emt 0:00:19]} b5 {[%emt 0:00:06]} 11. a4 {[%emt 0:06:14]} b4 {[%emt 0:00:51]} 12. Nb1 {[%emt 0:00:42]} Bb7 {[%emt 0:04:18]} 13. Nbd2 {[%emt 0:01:20]} Rc8 {[%emt 0:02:59]} 14. Nb3 {[%emt 0:02:20]} Na5 {[%emt 0:00:39]} 15. Nxa5 {[%emt 0:06:44]} Qxa5 {[%emt 0:01:35]} 16. Nd2 {[%emt 0:03:13]} Ne4 {[%emt 0:04:50]} 17. Nb3 {[%emt 0:02:08]} Qd8 {[%emt 0:01:12]} 18. f3 {[%emt 0:01:45]} Nf6 {[%emt 0:05:55]} 19. Qe2 {[%emt 0:01:18]} a5 {[%emt 0:04:16]} 20. Ba6 {[%emt 0:02:57]} Bxa6 {[%emt 0:00:18]} 21. Qxa6 {[%emt 0:00:07]} Ra8 {[%emt 0:00:04]} 22. Qb5 {[%emt 0:00:19]} Ne8 {[%emt 0:03:11]} 23. Rfc1 {[%emt 0:06:52]} Bd6 {[%emt 0:02:06]} 24. Bxd6 {[%emt 0:20:47]} Nxd6 {[%emt 0:00:20]} 25. Qd3 {[%emt 0:00:36]} Qg5 {[%emt 0:02:12]} 26. Rc2 {[%emt 0:01:53]} Nc4 {[%emt 0:03:15]} 27. Kf2 {[%emt 0:02:27]} h5 {[%emt 0:02:40]} 28. Nc5 {[%emt 0:01:28]} Ra7 {[%emt 0:01:45]} 29. e4 {[%emt 0:04:38]} Nd6 {[%emt 0:03:49]} 30. Kg1 {[%emt 0:01:35]} Rd8 {[%emt 0:00:32]} 31. Re2 {[%emt 0:03:00]} g6 {[%emt 0:05:07]} 32. b3 {[%emt 0:01:04]} dxe4 {[%emt 0:03:13]} 33. fxe4 {[%emt 0:00:15]} e5 {[%emt 0:00:37]} 34. dxe5 {[%emt 0:07:44]} Qxe5 {[%emt 0:01:59]} 35. Rc1 {[%emt 0:01:09]} Rc7 {[%emt 0:00:26]} 36. Qe3 {[%emt 0:02:31]} Rdc8 {[%emt 0:02:09]} 37. Rec2 {[%emt 0:02:13]} Nxe4 {[%emt 0:10:25]} 38. Nd3 {[%emt 0:00:32]} Rxc2 {[%emt 0:00:29]} 39. Nxe5 {[%emt 0:00:30]} Rxc1+ {[%emt 0:00:13]} 40. Kh2 {[%emt 0:00:00]} Nd6 {[%emt 0:00:00]} 41. Qd2 {[%emt 0:18:23]} Nf5 {[%emt 0:19:16]} 42. Qd5 {[%emt 0:00:34]} R8c7 {[%emt 0:01:10]} 43. Nxg6 {[%emt 0:01:05]} Ne3 {[%emt 0:02:20]} 44. Qd8+ {[%emt 0:00:14]} Kg7 {[%emt 0:01:50]} 45. Nf4 {[%emt 0:00:52]} Nf1+ {[%emt 0:02:36]} 46. Kh1 {[%emt 0:00:15]} Ng3+ {[%emt 0:02:03]} 47. Kh2 {[%emt 0:00:12]} R7c3 {[%emt 0:00:31]} 48. Nxh5+ {[%emt 0:01:39]} Nxh5 {[%emt 0:00:54]} 49. Qg5+ {[%emt 0:00:06]} Kf8 {[%emt 0:00:21]} 50. Qd8+ {[%emt 0:00:48]} Kg7 {[%emt 0:00:06]} 51. Qg5+ {[%emt 0:00:09]} Kf8 {[%emt 0:00:16]} 52. Qxh5 {[%emt 0:01:45]} R1c2 {[%emt 0:00:21]} 53. Qh8+ {[%emt 0:00:30]} Ke7 {[%emt 0:00:02]} 54. Qe5+ {[%emt 0:00:31]} Kf8 {[%emt 0:00:13]} 55. h4 {[%emt 0:00:44]} Rxb3 {[%emt 0:00:13]} 56. h5 Rbb2 57. h6 Rxg2+ 58. Kh3 Rh2+ 59. Kg4 Rbg2+ 60. Kf3 Rf2+ {Qd5} 1/2-1/2

[Event "11th Arad Open 2018"]
[Site "Arad"]
[Date "2018.08.10"]
[Round "7"]
[White "Magold, Victor"]
[Black "Pisu, Robert-Daniel"]
[Result "0-1"]
[ECO "A06"]
[WhiteElo "2032"]
[BlackElo "2282"]
[Annotator "NA"]
[PlyCount "100"]
[EventDate "2018.08.05"]
[EventType "swiss"]
[EventCountry "ROU"]
[SourceTitle "playchess.com"]
[Source "ChessBase"]
[SourceQuality "1"]
[TimeControl "40/5400+30:1800+30"]

1. Nf3 d5 2. d4 c6 3. Bf4 Nf6 4. h3 e6 5. e3 Bd6 6. Bxd6 Qxd6 7. Bd3 Nbd7 8. Nbd2 e5 9. dxe5 Nxe5 10. Nxe5 Qxe5 11. c3 O-O 12. O-O Re8 13. Nf3 Qe7 14. Qc2 Ne4 15. Rac1 Bf5 16. Rfd1 Rad8 17. Nd4 Bg6 18. Qe2 Rd6 19. c4 dxc4 20. Bxc4 Red8 21. Nf3 Bh5 22. Rxd6 Rxd6 23. Rd1 Ng5 24. Rxd6 Qxd6 25. Qd3 Nxf3+ 26. gxf3 Qxd3 27. Bxd3 Bxf3 28. Kh2 Bd5 29. a3 g6 30. Kg3 Kg7 31. Kf4 Kf6 32. h4 h6 33. e4 g5+ 34. hxg5+ hxg5+ 35. Kg3 Bb3 36. f4 c5 37. fxg5+ Kxg5 38. Kf3 Kf6 39. Kf4 Ke6 40. Be2 Kd6 41. Bh5 b5 42. e5+ Kc6 43. Kf5 Be6+ 44. Kf6 Kd5 45. Bf3+ Kd4 46. Bc6 a6 47. Be8 Kd5 48. a4 b4 49. a5 c4 50. Ba4 b3 0-1

[Event "11th Arad Open 2018"]
[Site "Arad"]
[Date "2018.08.10"]
[Round "7"]
[White "Dobrin, Ionut-Alexandru"]
[Black "Martian, Dragos-Daniel"]
[Result "0-1"]
[ECO "E20"]
[WhiteElo "1889"]
[BlackElo "2223"]
[Annotator "NA"]
[PlyCount "72"]
[EventDate "2018.08.05"]
[EventType "swiss"]
[EventCountry "ROU"]
[SourceTitle "playchess.com"]
[Source "ChessBase"]
[SourceQuality "1"]
[TimeControl "40/5400+30:1800+30"]

1. d4 {[%emt 0:00:00]} Nf6 {[%emt 0:00:00]} 2. c4 {[%emt 0:00:00]} e6 {[%emt 0:00:00]} 3. Nc3 {[%emt 0:00:00]} Bb4 {[%emt 0:00:00]} 4. f3 {[%emt 0:00:03]} c5 {[%emt 0:00:00]} 5. a3 {[%emt 0:00:04]} Bxc3+ {[%emt 0:00:54]} 6. bxc3 {[%emt 0:00:03]} b6 {[%emt 0:00:59]} 7. e4 {[%emt 0:02:51]} d6 {[%emt 0:00:33]} 8. Bg5 {[%emt 0:00:40]} Nc6 {[%emt 0:01:40]} 9. Ne2 {[%emt 0:13:52]} O-O {[%emt 0:02:45]} 10. g4 {[%emt 0:01:56]} Ba6 {[%emt 0:05:37]} 11. Ng3 {[%emt 0:00:22]} cxd4 {[%emt 0:03:40]} 12. Nh5 {[%emt 0:06:08]} e5 {[%emt 0:04:09]} 13. Bxf6 {[%emt 0:04:33]} gxf6 {[%emt 0:00:52]} 14. Qd2 {[%emt 0:00:17]} Kh8 {[%emt 0:01:36]} 15. Qh6 {[%emt 0:00:48]} Rg8 {[%emt 0:00:11]} 16. Nxf6 {[%emt 0:01:14]} Rg7 {[%emt 0:00:09]} 17. Rg1 {[%emt 0:07:36]} Ne7 {[%emt 0:07:28]} 18. cxd4 {[%emt 0:01:34]} exd4 {[%emt 0:03:35]} 19. Rg3 {[%emt 0:01:59]} Ng8 {[%emt 0:04:34]} 20. Nxg8 {[%emt 0:00:06]} Kxg8 {[%emt 0:00:31]} 21. Rd1 {[%emt 0:02:21]} Rg6 {[%emt 0:08:14]} 22. Qh5 {[%emt 0:03:07]} Rc8 {[%emt 0:06:44]} 23. Rh3 {[%emt 0:01:16]} h6 {[%emt 0:02:30]} 24. f4 {[%emt 0:15:16]} Rc5 {[%emt 0:12:42]} 25. f5 {[%emt 0:01:30]} Qe7 {[%emt 0:08:55]} 26. Rxd4 {[%emt 0:01:21]} Qf6 {[%emt 0:04:31]} 27. Rd1 {[%emt 0:10:03]} Bxc4 {[%emt 0:02:49]} 28. Bxc4 {[%emt 0:05:45]} Rxc4 {[%emt 0:00:04]} 29. Re3 {[%emt 0:03:39]} Rg5 {[%emt 0:00:19]} 30. Qh3 {[%emt 0:00:15]} h5 {[%emt 0:02:18]} 31. gxh5 {[%emt 0:00:39]} Rg1+ {[%emt 0:00:35]} 32. Ke2 {[%emt 0:00:22]} Rc2+ {[%emt 0:00:16]} 33. Rd2 {[%emt 0:00:06]} Rxd2+ {[%emt 0:00:34]} 34. Kxd2 {[%emt 0:00:01]} Qb2+ {[%emt 0:00:09]} 35. Kd3 {[%emt 0:00:21]} Rd1+ {[%emt 0:00:02]} 36. Kc4 {[%emt 0:00:16]} Rd4# {Kxd4} 0-1